bitfinex-derivatives/quotes_SOLF0:USTF0_20240823
["timestamp","ask_amount","ask_price","bid_price","bid_amount"]
[1724450937899,0.04919809,153.63,153.6,0.03450443]
[1724450938292,0.04919809,153.63,153.61,3.252]
[1724450940101,0.04919809,153.63,153.62,3.2519]
[1724450941096,0.04919809,153.63,153.6,0.03450443]
[1724450941605,0.04919809,153.63,153.61,3.2521]
[1724450942502,0.04919809,153.63,153.6,3.28670443]
[1724450943297,0.04919809,153.63,153.6,0.03450443]
[1724450943700,0.04919809,153.63,153.61,3.252]
[1724450944003,0.04919809,153.63,153.6,0.03450443]
[1724450944505,0.04919809,153.63,153.62,3.2519]
[1724450945201,1.3424,153.7,153.66,3.251]
[1724450946199,1.3424,153.7,153.66,3.30092881]
[1724450946393,1.38900927,153.7,153.66,3.30092881]
[1724450946993,1.38900927,153.7,153.67,3.2508]
[1724450947196,0.04660927,153.7,153.67,3.2508]
[1724450947604,0.04660927,153.7,153.66,3.30082881]
[1724450947806,0.04660927,153.7,153.66,0.04992881]
[1724450948404,24.98,153.68,153.66,0.04992881]
[1724450948703,24.98,153.68,153.57,24.98]
[1724450948999,24.98,153.66,153.57,24.98]
[1724450949201,28.16513106,153.68,153.57,24.98]
[1724450949404,24.98,153.68,153.64,3.2514]
[1724450949602,28.16091169,153.68,153.64,3.2514]
[1724450949905,28.20317419,153.68,153.64,3.28517371]
[1724450950494,25.0222625,153.68,153.65,3.2512]
[1724450950803,25.0222625,153.68,153.64,0.03377371]
[1724450950804,0.0422625,153.68,153.64,0.03377371]
[1724450950999,0.0422625,153.68,153.67,3.2508]
[1724450959901,0.0422625,153.68,153.64,0.03377371]
[1724450960305,0.0422625,153.68,153.67,3.2508]
[1724450966317,2.6415,153.77,153.72,3.2497]
[1724450966614,30.83883601,153.77,153.67,24.98]
[1724450966812,27.6215,153.77,153.63,2.1096]
[1724450967115,27.6215,153.77,153.66,24.98]
[1724450967316,0.04422018,153.73,153.71,3.2499]
[1724450969110,3.34606598,153.73,153.71,3.2499]
[1724450970722,28.32606598,153.73,153.7,3.29232013]
[1724450971318,24.98,153.71,153.68,3.2505]
[1724450971817,3.3018458,153.73,153.68,3.2505]
[1724450972018,24.98,153.71,153.68,3.2505]
[1724450972222,3.30639514,153.7,153.68,3.2505]
[1724450972720,25.02701444,153.71,153.67,0.03381607]
[1724450972721,24.98,153.69,153.67,0.03381607]
[1724450974119,28.15260236,153.69,153.68,3.2506]
[1724450975023,3.17260236,153.69,153.67,0.03381607]
[1724450975227,25.02701444,153.71,153.67,0.03381607]
[1724450975526,1.2705,153.7,153.67,0.03381607]
[1724450975726,24.98,153.68,153.67,0.03381607]
[1724450975924,24.98,153.68,153.59,1.3397]
[1724450976320,24.98,153.68,153.55,25.8293]
[1724450976515,24.98,153.68,153.63,3.2515]
[1724450977018,0.04110909,153.67,153.63,3.2515]
[1724450978123,0.04110909,153.67,153.64,3.2514]
[1724450978322,0.04382091,153.67,153.57,24.98]
[1724450978628,0.04240279,153.64,153.57,24.98]
[1724450978831,0.04240279,153.64,153.63,3.2517]
[1724450982031,2.663,153.7,153.69,3.2504]
[1724450982226,1.2705,153.7,153.69,3.2504]
[1724450983730,1.2705,153.7,153.68,0.0424028]
[1724450987029,1.2705,153.7,153.67,3.2507]
[1724450987235,1.2705,153.7,153.61,24.98]
[1724450988139,1.2705,153.7,153.68,3.2505]
[1724450988733,1.2705,153.7,153.61,24.98]
[1724450989030,1.2705,153.7,153.68,3.2505]
[1724450999148,4.5208,153.7,153.61,24.98]
[1724450999446,0.04699093,153.67,153.61,24.98]
[1724450999946,0.04699093,153.67,153.66,3.251]
[1724451004243,19.57,153.81,153.65,24.98]
[1724451004244,3.20693549,153.73,153.65,24.98]
[1724451004550,24.98,153.77,153.67,24.98]
[1724451004945,3.2492,153.75,153.65,24.98]
[1724451005151,0.04767698,153.72,153.68,0.04140576]
[1724451005746,0.04767698,153.72,153.71,3.25]
[1724451009042,0.04767698,153.72,153.68,0.04140576]
[1724451009553,0.04767698,153.72,153.71,3.25]
[1724451009748,0.04767698,153.72,153.68,0.04140576]
[1724451010855,3.29747698,153.72,153.68,0.04140576]
[1724451011455,0.04767698,153.72,153.69,3.2502]
[1724451012547,25.02767698,153.72,153.69,3.2502]
[1724451012749,25.02767698,153.72,153.68,0.04140576]
[1724451013759,25.02767698,153.72,153.68,3.29200576]
[1724451014063,28.27767698,153.72,153.68,0.04140576]
[1724451014863,24.98,153.7,153.58,2.2371]
[1724451015067,24.98,153.68,153.58,2.2371]
[1724451015269,28.2302,153.7,153.59,24.98]
[1724451015463,5.92233874,153.71,153.61,24.98]
[1724451015659,24.98,153.72,153.61,24.98]
[1724451015869,28.2811902,153.72,153.68,3.2505]
[1724451016061,28.2811902,153.72,153.61,24.98]
[1724451016261,0.04449866,153.68,153.61,24.98]
[1724451016962,0.04449866,153.68,153.67,3.2508]
[1724451018963,0.04449866,153.68,153.66,3.2509]
[1724451020067,0.04449866,153.68,153.59,24.98]
[1724451020467,0.04449866,153.68,153.66,3.2508]
[1724451020670,0.04449866,153.68,153.59,24.98]
[1724451022371,0.04449866,153.68,153.66,3.2509]
[1724451022670,0.04449866,153.68,153.58,2.2371]
[1724451022671,24.98,153.67,153.58,2.2371]
[1724451022871,0.0437465,153.64,153.63,3.2517]
[1724451023070,25.02102713,153.65,153.63,3.2517]
[1724451023367,25.02102713,153.65,153.58,2.2371]
[1724451023968,25.02102713,153.65,153.63,3.2515]
[1724451024562,25.02102713,153.65,153.54,26.0]
[1724451024765,0.04832246,153.61,153.54,26.0]
[1724451025371,0.04832246,153.61,153.6,3.2522]
[1724451027871,0.04832246,153.61,153.54,26.0]
[1724451028276,24.98,153.6,153.54,26.0]
[1724451028776,28.2323,153.6,153.54,26.0]
[1724451028975,24.98,153.6,153.53,1.342]
[1724451029481,24.98,153.6,153.49,25.8292]
[1724451029675,0.04767848,153.56,153.5,1.18099765]
[1724451029877,0.04767848,153.56,153.55,3.2533]
[1724451053798,0.04767848,153.56,153.46,24.98]
[1724451054004,0.04642263,153.53,153.46,24.98]
[1724451054504,0.04642263,153.53,153.52,3.254]
[1724451062210,0.04642263,153.53,153.44,50.98]
[1724451062405,1.43752263,153.53,153.44,50.98]
[1724451062805,1.43752263,153.53,153.5,3.2542]
[1724451063305,1.43752263,153.53,153.44,50.98]
[1724451064506,1.43752263,153.53,153.51,3.2541]
[1724451065208,1.43752263,153.53,153.44,50.98]
[1724451066507,1.43752263,153.53,153.51,3.2541]
[1724451068400,1.43752263,153.53,153.5,3.2543]
[1724451068606,1.43752263,153.53,153.44,50.98]
[1724451068805,1.43752263,153.53,153.51,3.2541]
[1724451069508,1.43752263,153.53,153.44,50.98]
[1724451069509,1.43752263,153.53,153.52,3.254]
[1724451070312,0.04642263,153.53,153.52,3.254]
[1724451072406,3.9163,153.61,153.52,24.98]
[1724451073014,7.226575,153.61,153.52,24.98]
[1724451073215,35.458675,153.61,153.52,24.98]
[1724451073410,0.04821685,153.58,153.55,0.04880057]
[1724451074313,0.04821685,153.58,153.57,3.2528]
[1724451087132,0.04821685,153.58,153.55,0.04880057]
[1724451088435,24.98,153.57,153.55,0.04880057]
[1724451088631,24.98,153.54,153.43,31.05709794]
[1724451089028,3.2539,153.53,153.5,3.2543]
[1724451089225,24.98,153.54,153.43,31.05709794]
[1724451089632,0.044761,153.51,153.5,3.2543]
[1724451090227,0.044761,153.51,153.43,31.05709794]
[1724451092442,0.044761,153.51,153.48,3.2547]
[1724451093737,25.024761,153.51,153.48,3.2547]
[1724451094134,24.98,153.49,153.41,60.11093222]
[1724451094336,24.98,153.46,153.41,60.11093222]
[1724451094532,0.04851189,153.45,153.41,60.11093222]
[1724451095541,0.04851189,153.45,153.44,3.2557]
[1724451098633,0.04851189,153.45,153.36,2.6197]
[1724451098634,25.02851189,153.45,153.36,1.3592]
[1724451098837,25.02851189,153.45,153.37,1.17991532]
[1724451098838,28.33964177,153.45,153.37,1.17991532]
[1724451099037,25.02851189,153.45,153.43,3.2559]
[1724451100644,25.02851189,153.45,153.36,2.6877]
[1724451100841,25.02851189,153.45,153.37,1.18016406]
[1724451101241,3.28086004,153.44,153.37,1.18016406]
[1724451101641,28.28401189,153.45,153.37,1.18016406]
[1724451101850,24.98,153.42,153.37,1.18016406]
[1724451102043,24.98,153.4,153.33,26.02]
[1724451102343,24.98,153.4,153.34,1.18077923]
[1724451102935,24.98,153.4,153.38,3.2568]
[1724451103639,24.98,153.4,153.33,26.02]
[1724451104539,24.98,153.38,153.29,1.3129]
[1724451104848,0.04885162,153.35,153.34,3.2578]
[1724451108340,0.04885162,153.35,153.28,1.3553]
[1724451108540,24.98,153.34,153.28,1.3553]
[1724451108845,24.98,153.34,153.25,1.3173]
[1724451109149,24.98,153.34,153.3,3.2585]
[1724451109150,0.04205916,153.31,153.3,3.2585]
[1724451109948,24.98,153.38,153.36,3.2572]
[1724451110645,24.98,153.38,153.24,1.2696]
[1724451110842,24.98,153.33,153.25,1.18449651]
[1724451111151,0.05003531,153.31,153.27,0.04526639]
[1724451111945,25.03003531,153.31,153.29,3.2587]
[1724451112139,25.03003531,153.31,153.27,0.04526639]
[1724451112340,24.98,153.29,153.27,0.04526639]
[1724451112539,25.03003531,153.31,153.27,0.04526639]
[1724451113144,25.03003531,153.31,153.28,3.2589]
[1724451113346,25.03003531,153.31,153.27,0.04526639]
[1724451113552,0.05003531,153.31,153.27,0.04526639]
[1724451113744,0.05003531,153.31,153.3,3.2586]
[1724451114842,24.98,153.37,153.27,24.98]
[1724451115241,24.98,153.39,153.27,24.98]
[1724451115543,24.98,153.37,153.27,24.98]
[1724451115742,0.04689477,153.34,153.3,0.04214164]
[1724451118349,0.04689477,153.34,153.32,3.2581]
[1724451119249,0.04689477,153.34,153.33,3.258]
[1724451120644,0.04689477,153.34,153.3,0.04214164]
[1724451121537,0.04689477,153.34,153.32,3.2581]
[1724451121742,0.04689477,153.34,153.3,0.04214164]
[1724451122142,0.04689477,153.34,153.33,3.258]
[1724451126449,1.331,153.43,153.32,24.98]
[1724451126450,26.311,153.43,153.32,24.98]
[1724451126651,29.5669,153.43,153.33,1.3732]
[1724451126952,29.5669,153.43,153.39,3.2566]
[1724451127145,29.5669,153.43,153.33,2.6494]
[1724451127146,26.311,153.43,153.33,2.6494]
[1724451127345,0.04139939,153.4,153.36,0.04403037]
[1724451127750,0.04139939,153.4,153.39,3.2567]
[1724451129345,0.04139939,153.4,153.36,0.04403037]
[1724451130047,0.04139939,153.4,153.38,3.2567]
[1724451130252,0.04139939,153.4,153.36,0.04403037]
[1724451130751,0.04139939,153.4,153.39,3.2567]
[1724451131544,0.04139939,153.4,153.36,0.04403037]
[1724451133349,0.04139939,153.4,153.39,3.2567]
[1724451134750,0.04139939,153.4,153.36,0.04403037]
[1724451134949,24.98,153.37,153.29,2.5762]
[1724451135349,24.98,153.34,153.33,3.2578]
[1724451135846,24.98,153.34,153.31,3.2582]
[1724451136046,24.98,153.32,153.31,3.3063718]
[1724451136453,24.98,153.32,153.21,26.04]
[1724451136652,24.98,153.3,153.23,1.18261746]
[1724451137257,24.98,153.3,153.29,3.2589]
[1724451138065,0.04552394,153.31,153.29,3.2589]
[1724451138656,0.04552394,153.31,153.3,3.2586]
[1724451139459,0.04552394,153.31,153.29,3.2588]
[1724451141161,0.04552394,153.31,153.28,0.04329174]
[1724451142257,0.04552394,153.31,153.29,3.2587]
[1724451144964,0.04552394,153.31,153.3,3.2586]
[1724451148460,0.04552394,153.31,153.29,3.2587]
[1724451148661,24.98,153.3,153.22,1.2957]
[1724451148863,24.98,153.26,153.21,26.04]
[1724451149367,24.98,153.24,153.19,68.57041013]
[1724451149871,24.98,153.21,153.19,68.57041013]
[1724451151066,24.98,153.21,153.14,1.3272]
[1724451151360,0.04105658,153.19,153.15,1.18557807]
[1724451151862,25.02105658,153.19,153.14,1.3272]
[1724451152373,25.02105658,153.19,153.17,3.2613]
[1724451153066,25.02105658,153.19,153.18,3.2612]
[1724451153465,0.04105658,153.19,153.18,3.2612]
[1724451154766,25.02105658,153.19,153.18,3.2612]
[1724451155568,0.04105658,153.19,153.18,3.2612]
[1724451157566,25.02105658,153.19,153.18,3.2612]
[1724451159063,25.02105658,153.19,153.17,3.2613]
[1724451159667,25.02105658,153.19,153.11,27.3526]
[1724451159858,25.02105658,153.19,153.18,3.2612]
[1724451160562,0.04105658,153.19,153.18,3.2612]
[1724451168878,0.04105658,153.19,153.11,27.3526]
[1724451168879,25.02105658,153.19,153.17,3.2614]
[1724451169178,25.02105658,153.19,153.11,27.3526]
[1724451169785,25.02105658,153.19,153.18,3.2612]
[1724451169980,0.04105658,153.19,153.18,3.2612]
[1724451170379,25.02105658,153.19,153.18,3.2612]
[1724451171195,25.02105658,153.19,153.17,3.2613]
[1724451171395,25.02105658,153.19,153.11,27.3526]
[1724451171992,24.98,153.17,153.11,27.3526]
[1724451172196,0.04484196,153.16,153.11,27.3526]
[1724451172699,0.04484196,153.16,153.15,3.2618]
[1724451182502,24.98,153.22,153.11,52.3326]
[1724451183398,0.05011608,153.18,153.15,0.04839114]
[1724451184005,24.98,153.24,153.15,0.04839114]
[1724451184400,24.98,153.24,153.2,3.2606]
[1724451184809,25.02394308,153.24,153.2,0.04454795]
[1724451185302,25.02394308,153.24,153.2,3.30524795]
[1724451186108,25.02394308,153.24,153.21,3.2605]
[1724451186403,25.02394308,153.24,153.2,0.04454795]
[1724451186608,0.04394308,153.24,153.22,3.2602]
[1724451188201,0.04394308,153.24,153.23,3.2601]
[1724451188502,3.22060295,153.37,153.22,24.98]
[1724451188701,1.3204,153.44,153.27,24.98]
[1724451188908,24.98,153.38,153.28,1.2807]
[1724451189406,3.9683,153.44,153.31,24.98]
[1724451189598,24.98,153.42,153.31,24.98]
[1724451189800,24.98,153.42,153.36,0.04842564]
[1724451189801,0.04335538,153.39,153.36,0.04842564]
[1724451191403,24.98,153.37,153.3,60.08747462]
[1724451191809,24.98,153.35,153.31,3.2583]
[1724451192001,24.98,153.35,153.3,60.08747462]
[1724451192206,24.98,153.35,153.3,63.34597462]
[1724451192613,0.04884334,153.34,153.31,0.04524327]
[1724451192802,0.04884334,153.34,153.31,3.30364327]
[1724451193412,0.04884334,153.34,153.31,0.04524327]
[1724451194215,24.98,153.37,153.33,3.258]
[1724451195207,25.02823371,153.37,153.33,3.30329795]
[1724451196012,25.02823371,153.37,153.33,0.04529795]
[1724451196013,24.98,153.35,153.33,0.04529795]
[1724451196216,24.98,153.34,153.26,1.2698]
[1724451196416,24.98,153.32,153.26,1.2698]
[1724451196603,24.98,153.32,153.27,3.2591]
[1724451196917,24.98,153.32,153.21,24.98]
[1724451197118,0.04522334,153.28,153.26,3.2595]
[1724451197808,0.04522334,153.28,153.27,3.2593]
[1724451198616,0.04522334,153.28,153.25,0.04390977]
[1724451198617,0.04522334,153.28,153.26,3.2593]
[1724451200220,0.04522334,153.28,153.25,0.04390977]
[1724451200420,25.02522334,153.28,153.25,0.04390977]
[1724451200822,28.28432334,153.28,153.25,0.04390977]
[1724451201215,25.02522334,153.28,153.25,0.04390977]
[1724451201419,28.28442334,153.28,153.25,0.04390977]
[1724451202624,25.02522334,153.28,153.25,0.04390977]
[1724451202922,0.04522334,153.28,153.25,0.04390977]
[1724451203117,0.04522334,153.28,153.25,3.30360977]
[1724451203327,0.04522334,153.28,153.25,0.04390977]
[1724451203824,0.04522334,153.28,153.26,3.2595]
[1724451206723,0.04522334,153.28,153.25,3.30350977]
[1724451206928,24.98,153.27,153.25,0.04390977]
[1724451207122,26.3409,153.27,153.25,0.04390977]
[1724451207516,26.3409,153.27,153.19,26.06]
[1724451207716,24.98,153.24,153.19,26.06]
[1724451207922,24.98,153.24,153.22,3.2603]
[1724451208123,24.98,153.24,153.19,26.06]
[1724451208515,24.98,153.24,153.2,3.30380864]
[1724451208516,0.04368844,153.23,153.2,3.30380864]
[1724451208719,0.04368844,153.23,153.2,0.04320864]
[1724451208921,0.04368844,153.23,153.21,3.2605]
[1724451209121,0.04368844,153.23,153.2,0.04320864]
[1724451209521,0.04368844,153.23,153.22,3.2603]
[1724451211126,0.04368844,153.23,153.21,3.2605]
[1724451211524,0.04368844,153.23,153.2,0.04320864]
[1724451211726,24.98,153.22,153.2,0.04320864]
[1724451213026,24.98,153.22,153.2,3.30390864]
[1724451213221,0.04368844,153.23,153.2,0.04320864]
[1724451213822,0.04368844,153.23,153.22,3.2603]
[1724451216832,0.04368844,153.23,153.2,0.04320864]
[1724451216833,0.04368844,153.23,153.21,3.2604]
[1724451217633,0.04368844,153.23,153.22,3.2603]
[1724451217837,0.04368844,153.23,153.2,0.04320864]
[1724451218137,0.04368844,153.23,153.22,3.2603]
[1724451220035,0.04368844,153.23,153.21,3.2605]
[1724451220639,25.02368844,153.23,153.2,3.30390864]
[1724451222239,25.02368844,153.23,153.2,0.04320864]
[1724451222833,24.98,153.21,153.2,0.04320864]
[1724451223634,24.98,153.21,153.17,3.2613]
[1724451223834,24.98,153.18,153.17,3.2613]
[1724451225843,0.04268502,153.19,153.18,3.2612]
[1724451226435,0.04268502,153.19,153.17,3.2614]
[1724451226744,0.04268502,153.19,153.14,1.3032]
[1724451227149,0.04268502,153.19,153.17,3.2614]
[1724451227340,24.98,153.18,153.09,278.3701]
[1724451227646,0.04434342,153.15,153.1,1.18766195]
[1724451227842,0.04434342,153.15,153.14,3.2619]
[1724451232248,0.04434342,153.15,153.11,3.2626]
[1724451232552,24.98,153.14,153.11,3.2626]
[1724451233753,24.98,153.14,153.09,26.06]
[1724451234551,24.98,153.14,153.08,69.28781429]
[1724451234552,24.98,153.12,153.08,69.28781429]
[1724451234848,25.02105213,153.12,153.08,69.28781429]
[1724451235248,28.28365213,153.12,153.08,69.28781429]
[1724451235448,24.98,153.1,153.06,3.2636]
[1724451236250,24.98,153.1,153.07,3.2635]
[1724451236454,25.02476129,153.1,153.07,3.2635]
[1724451236846,25.02476129,153.1,153.01,24.98]
[1724451237050,0.04263425,153.07,153.03,24.98]
[1724451237355,0.04263425,153.07,153.04,1.3791]
[1724451237956,2.5659,153.14,153.05,24.98]
[1724451238458,24.98,153.11,153.01,6.5297]
[1724451238759,24.98,153.11,153.02,1.19012598]
[1724451239060,0.04731229,153.08,153.07,3.2633]
[1724451244458,0.04731229,153.08,153.05,0.04286816]
[1724451246551,24.98,153.07,153.05,0.04286816]
[1724451246755,3.2637,153.06,153.05,0.04286816]
[1724451247255,24.98,153.06,152.88,2.93427881]
[1724451247457,24.98,153.01,152.9,26.2942]
[1724451247664,3.2651,153.0,152.94,3.2662]
[1724451248063,4.6003,153.0,152.94,3.2662]
[1724451248263,0.04381107,152.99,152.94,3.2662]
[1724451249160,3.30911107,152.99,152.9,26.2942]
[1724451249352,3.30911107,152.99,152.91,1.19186957]
[1724451249960,3.30911107,152.99,152.93,3.2664]
[1724451250161,0.04381107,152.99,152.9,26.2942]
[1724451250464,0.04381107,152.99,152.98,3.2655]
[1724451251361,0.04381107,152.99,152.94,24.98]
[1724451251562,0.04381107,152.99,152.95,1.19108208]
[1724451251863,0.04381107,152.99,152.97,3.2656]
[1724451252762,0.04381107,152.99,152.98,3.2655]
[1724451253159,0.04381107,152.99,152.94,24.98]
[1724451253661,0.04381107,152.99,152.97,3.2656]
[1724451253962,0.04381107,152.99,152.94,24.98]
[1724451254159,0.04381107,152.99,152.95,1.1911241]
[1724451254360,0.04381107,152.99,152.94,24.98]
[1724451254658,0.04381107,152.99,152.97,3.2655]
[1724451254862,0.04381107,152.99,152.96,24.98]
[1724451255064,0.04381107,152.99,152.98,24.98]
[1724451255262,24.98,153.07,153.01,3.2648]
[1724451255755,28.2437,153.07,153.01,3.2648]
[1724451256162,0.04996069,153.06,153.02,0.04989391]
[1724451256565,0.04996069,153.06,153.02,25.02989391]
[1724451257165,0.04996069,153.06,153.05,3.264]
[1724451268665,0.04996069,153.06,153.02,0.04989391]
[1724451268666,25.02996069,153.06,153.02,0.04989391]
[1724451268861,24.98,153.04,153.02,0.04989391]
[1724451269870,24.98,153.04,152.94,1.19181555]
[1724451270172,3.20750473,153.05,152.94,1.19181555]
[1724451270173,24.98,153.01,152.94,1.19181555]
[1724451270368,24.98,153.01,152.98,3.2654]
[1724451271376,25.02702218,153.01,152.98,3.2654]
[1724451272372,25.02702218,153.01,152.93,3.9654]
[1724451272675,24.98,152.99,152.93,2.647]
[1724451272879,0.04801855,152.98,152.93,2.647]
[1724451273475,0.04801855,152.98,152.95,3.266]
[1724451273671,0.04801855,152.98,152.93,2.647]
[1724451274074,0.04801855,152.98,152.96,3.2658]
[1724451275281,0.04801855,152.98,152.91,24.98]
[1724451275579,0.04801855,152.98,152.92,1.19240387]
[1724451275781,0.04801855,152.98,152.96,3.2657]
[1724451277880,0.04801855,152.98,152.97,3.2657]
[1724451282887,0.04801855,152.98,152.96,3.2658]
[1724451284288,0.04801855,152.98,152.97,3.2657]
[1724451286589,24.98,153.03,152.95,31.0223813]
[1724451286792,24.98,153.07,152.96,1.19173195]
[1724451286986,24.98,153.07,152.96,4.4149932]
[1724451287189,28.2437,153.07,153.02,3.2645]
[1724451287594,0.04523381,153.06,153.03,0.04977156]
[1724451287901,24.98,153.05,153.03,0.04977156]
[1724451288296,28.244,153.05,153.03,0.04977156]
[1724451288696,24.98,153.05,153.03,0.04977156]
[1724451291203,24.98,153.05,153.03,3.31417156]
[1724451291701,24.98,153.05,153.04,3.2642]
[1724451293800,24.98,153.05,153.03,0.04977156]
[1724451294204,3.2645,153.03,153.0,3.2649]
[1724451294409,24.98,153.0,152.95,2.7522]
[1724451294800,24.98,153.0,152.99,3.2652]
[1724451295904,0.04595438,153.01,152.95,2.7522]
[1724451295905,0.04595438,153.01,153.0,3.265]
[1724451296314,0.04595438,153.01,152.99,3.2652]
[1724451297009,0.04595438,153.01,152.95,2.7522]
[1724451297010,0.04595438,153.01,153.0,3.265]
[1724451298515,0.04595438,153.01,152.95,2.7522]
[1724451298806,0.04595438,153.01,152.92,9.72459746]
[1724451299010,24.98,152.97,152.87,32.6353]
[1724451299314,0.04983587,152.94,152.88,1.19382976]
[1724451299605,0.04983587,152.94,152.88,2.57232976]
[1724451299808,0.04983587,152.94,152.93,3.2665]
[1724451302314,0.04983587,152.94,152.88,1.3785]
[1724451302711,0.04983587,152.94,152.91,3.2669]
[1724451304105,0.04983587,152.94,152.92,3.2667]
[1724451304302,0.04983587,152.94,152.88,26.3585]
[1724451304705,0.04983587,152.94,152.93,3.2665]
[1724451304913,24.98,153.12,152.88,26.3585]
[1724451304914,24.98,153.01,152.9,24.98]
[1724451305106,24.98,153.12,152.9,24.98]
[1724451305107,24.98,153.03,152.94,0.04524066]
[1724451305308,24.98,153.03,152.94,24.98]
[1724451305514,24.98,153.03,152.95,1.3386]
[1724451306017,25.0285856,153.01,152.98,3.2653]
[1724451306415,0.0485856,153.01,153.0,3.265]
[1724451306925,0.0485856,153.01,152.97,0.04220644]
[1724451307618,0.0485856,153.01,152.99,3.265]
[1724451308723,0.0485856,153.01,153.0,3.265]
[1724451311314,0.0485856,153.01,152.99,3.2652]
[1724451311513,0.0485856,153.01,152.98,1.2637]
[1724451311920,24.98,153.0,152.97,0.04220644]
[1724451312126,0.0485856,153.01,152.97,0.04220644]
[1724451312315,24.98,152.98,152.97,0.04220644]
[1724451312520,24.98,152.98,152.9,2.5669]
[1724451313420,0.04721571,152.96,152.9,2.5669]
[1724451314017,0.04721571,152.96,152.93,3.2664]
[1724451314222,0.04721571,152.96,152.9,2.5669]
[1724451314618,0.04721571,152.96,152.93,3.2664]
[1724451315029,0.04721571,152.96,152.9,2.5669]
[1724451315424,0.04721571,152.96,152.93,3.2664]
[1724451315619,0.04721571,152.96,152.9,2.5669]
[1724451316225,0.04721571,152.96,152.92,3.2666]
[1724451316628,25.02721571,152.96,152.92,3.2666]
[1724451317132,25.02721571,152.96,152.9,2.5669]
[1724451319624,25.02721571,152.96,152.93,3.2664]
[1724451320027,0.04721571,152.96,152.9,2.5669]
[1724451320634,0.04721571,152.96,152.95,3.2661]
[1724451321234,24.98,153.02,152.98,3.2653]
[1724451322325,25.02130156,153.02,152.98,3.31088543]
[1724451322637,25.02130156,153.02,152.98,0.04558543]
[1724451324137,24.98,153.0,152.98,0.04558543]
[1724451324437,24.98,153.0,152.9,2.5669]
[1724451324628,24.98,152.97,152.95,3.266]
[1724451326235,24.98,152.97,152.9,2.5669]
[1724451326439,24.98,152.95,152.9,2.5669]
[1724451326632,0.04754348,152.94,152.9,2.5669]
[1724451326837,0.04754348,152.94,152.93,3.2665]
[1724451328236,2.5897,153.02,152.91,24.98]
[1724451328542,3.2648,153.01,152.91,24.98]
[1724451328841,2.5897,153.02,152.91,24.98]
[1724451329030,24.98,153.03,152.93,24.98]
[1724451329236,24.98,152.98,152.96,0.04578977]
[1724451329934,24.98,152.97,152.9,2.5669]
[1724451330736,3.266,152.96,152.91,3.2669]
[1724451331143,0.045481,152.95,152.91,3.2669]
[1724451333348,3.311581,152.95,152.91,3.2669]
[1724451333840,28.2464,152.94,152.89,3.2673]
[1724451334047,24.98,152.92,152.87,26.1]
[1724451334243,0.04544356,152.91,152.87,26.1]
[1724451334443,24.98,152.9,152.87,26.1]
[1724451334643,24.98,152.9,152.82,7.30666872]
[1724451334840,0.04306179,152.88,152.83,1.1982194]
[1724451335043,0.04306179,152.88,152.86,3.268]
[1724451335238,0.04306179,152.88,152.82,7.30666872]
[1724451335442,0.04306179,152.88,152.83,1.19838676]
[1724451335750,0.04306179,152.88,152.82,3.9759]
[1724451336944,25.02306179,152.88,152.82,1.296]
[1724451337649,0.04306179,152.88,152.82,1.296]
[1724451338645,0.04306179,152.88,152.87,3.2678]
[1724451344148,24.98,152.96,152.84,24.98]
[1724451344351,24.98,152.96,152.86,24.98]
[1724451345046,0.04377431,152.93,152.89,0.04354478]
[1724451345251,0.04377431,152.93,152.92,3.2667]
[1724451346654,0.04377431,152.93,152.89,0.04354478]
[1724451346849,24.98,152.92,152.89,0.04354478]
[1724451347251,0.04377431,152.93,152.89,0.04354478]
[1724451347252,24.98,152.9,152.89,0.04354478]
[1724451347450,24.98,152.9,152.82,1.296]
[1724451348353,0.04325811,152.88,152.82,1.296]
[1724451349855,3.31095811,152.88,152.83,3.2686]
[1724451352861,3.31095811,152.88,152.84,3.2685]